fUST/lending_fUST_20240815
["ID","MTS","AMOUNT","RATE_DAILY","PERIOD"]
[334966057,1723683046635,-500.0,0.00013698,2]
[334966058,1723683046645,-203.044572,0.00013698,2]
[334966059,1723683046655,-203.044572,0.00013698,2]
[334966060,1723683046665,-203.044572,0.00013698,2]
[334966061,1723683046675,-841.85,0.00013698,2]
[334966063,1723683046685,-500.0,0.00013698,2]
[334966065,1723683046695,-500.0,0.00013698,2]
[334966067,1723683046705,-137.94790874,0.00013698,2]
[334966085,1723683047060,-347.85600012,0.00011731,2]
[334966086,1723683047086,-3300.1543449,0.00011731,2]
[334966087,1723683047548,-3362.22491586,0.00011731,2]
[334966088,1723683047559,-5198.21460136,0.00011987,2]
[334966117,1723684231896,-300.0,8.52e-05,2]
[334966118,1723684231907,-200.0,8.52e-05,2]
[334966119,1723684231918,-2711.31124135,8.521e-05,2]
[334966120,1723684231930,-1879.66289469,8.521e-05,2]
[334966152,1723684237928,-284.83809153,8.521e-05,2]
[334966154,1723684237948,-5560.36626058,8.521e-05,2]
[334966171,1723684238099,-1115.36938171,8.521e-05,2]
[334966173,1723684238108,-679.91787146,8.883e-05,2]
[334966342,1723684239828,-129.74074175,8.883e-05,2]
[334966344,1723684239838,-24900.0,9.082e-05,2]
[334966346,1723684239848,-400.0,9.89e-05,2]
[334966348,1723684239858,-231.836345,9.941e-05,2]
[334966350,1723684239868,-231.836345,9.969e-05,2]
[334966352,1723684239877,-231.836345,9.996e-05,2]
[334966354,1723684239886,-157.02043595,9.999e-05,2]
[334966356,1723684239895,-231.836345,0.00010023,2]
[334966358,1723684239905,-231.836345,0.0001005,2]
[334966360,1723684239914,-231.836345,0.00010078,2]
[334966362,1723684239924,-413.45265018,0.00010081,2]
[334966364,1723684239935,-154.80649189,0.00010081,2]
[334966366,1723684239944,-196.71565749,0.00010081,2]
[334966368,1723684239955,-154.80649189,0.00010081,2]
[334966371,1723684239971,-231.836345,0.00010105,2]
[334966373,1723684239981,-231.836345,0.00010132,2]
[334966375,1723684239992,-231.836345,0.00010159,2]
[334966377,1723684240003,-231.836345,0.00010187,2]
[334966379,1723684240013,-231.836345,0.00010214,2]
[334966381,1723684240023,-231.836345,0.00010241,2]
[334966383,1723684240033,-342.47979758,0.0001026,2]
[334966385,1723684240044,-231.836345,0.00010268,2]
[334966387,1723684240054,-231.836345,0.00010296,2]
[334966389,1723684240064,-231.836345,0.00010323,2]
[334966391,1723684240073,-231.836345,0.0001035,2]
[334966393,1723684240083,-231.836345,0.00010377,2]
[334966395,1723684240092,-231.836345,0.00010405,2]
[334966397,1723684240102,-231.836345,0.00010432,2]
[334966399,1723684240112,-231.836345,0.00010459,2]
[334966401,1723684240122,-42392.12136225,0.00010739,2]
[334966403,1723684240132,-339.93,0.00010959,2]
[334966405,1723684240142,-20784.67491515,0.00011731,2]
[334966407,1723684240153,-600.0,0.00011893,2]
[334966409,1723684240163,-57178.8889821,0.000119,2]
[334966411,1723684240173,-154.80649189,0.00011987,2]
[334966413,1723684240183,-1016.13291287,0.00011987,2]
[334966415,1723684240193,-1670.92226544,0.00011987,2]
[334966432,1723684240343,-154.80649189,0.00011987,2]
[334966434,1723684240353,-9654.55565372,0.00012163,2]
[334966436,1723684240363,-7010.23526088,0.00012163,2]
[334966438,1723684240373,-1765.67532584,0.00012516,2]
[334966440,1723684240384,-2127.07450646,0.00012516,2]
[334966442,1723684240394,-2165.20291982,0.00012516,2]
[334966444,1723684240403,-307.36558296,0.00012519,2]
[334966446,1723684240413,-28589.444491,0.00012542,2]
[334966448,1723684240423,-1765.67532584,0.00012551,2]
[334966450,1723684240435,-1718.91670259,0.00012551,2]
[334966453,1723684240446,-1500.0,0.00012629,2]
[334966455,1723684240456,-1612.67783737,0.00012629,2]
[334966456,1723684240466,-2141.83182523,0.00012782,2]
[334966458,1723684240475,-553.0488525,0.00012782,2]
[334966460,1723684240484,-307.36558295,0.00012857,2]
[334966462,1723684240494,-335.55348602,0.00012886,2]
[334966465,1723684240504,-728.43490027,0.00012898,2]
[334966467,1723684240513,-4670.63417814,0.000129,2]
[334966469,1723684240523,-582.8354928,0.00012904,2]
[334966471,1723684240534,-898.15627799,0.00012934,2]
[334966473,1723684240544,-933.35147554,0.00012934,2]
[334966475,1723684240554,-810.98237385,0.00012934,2]
[334966477,1723684240564,-810.98237385,0.00012971,2]
[334966479,1723684240574,-301.37434502,0.00012971,2]
[334966481,1723684240584,-309.67712516,0.00012971,2]
[334966483,1723684240594,-301.37434502,0.00012971,2]
[334966485,1723684240603,-20217.62152231,0.00012985,2]
[334966487,1723684240612,-410.08061,0.00012986,2]
[334966489,1723684240622,-493.03932546,0.00012991,2]
[334966491,1723684240631,-493.03932546,0.00012991,2]
[334966493,1723684240641,-154.80649189,0.00012991,2]
[334966495,1723684240652,-2003.42446477,0.00013,2]
[334966497,1723684240662,-150.112233,0.00013,2]
[334966499,1723684240672,-150.112233,0.000131,2]
[334966501,1723684240681,-307.36558295,0.00013196,2]
[334966503,1723684240694,-150.112233,0.000132,2]
[334966505,1723684240703,-764.50940577,0.00013245,2]
[334966507,1723684240713,-150.112233,0.000133,2]
[334966509,1723684240722,-150.112233,0.000134,2]
[334966511,1723684240732,-150.0,0.0001346,2]
[334966513,1723684240742,-158.01490399,0.00013497,2]
[334966515,1723684240753,-158.01490399,0.00013497,2]
[334966517,1723684240762,-2894.30402062,0.00013498,2]
[334966519,1723684240772,-150.112233,0.000135,2]
[334966521,1723684240783,-307.36558295,0.00013534,2]
[334966524,1723684240793,-57178.8889821,0.00013588,2]
[334966526,1723684240803,-4248.49719753,0.00013597,2]
[334966528,1723684240813,-32237.69530262,0.00013597,2]
[334966530,1723684240823,-494.87154082,0.00013597,2]
[334966532,1723684240833,-88888.0,0.00013598,2]
[334966534,1723684240843,-2000.0,0.00013598,2]
[334966536,1723684240853,-494.87154082,0.00013599,2]
[334966538,1723684240862,-336.64263509,0.000136,2]
[334966540,1723684240872,-150.112233,0.000136,2]
[334966542,1723684240883,-5055.41655287,0.00013641,2]
[334966544,1723684240893,-951.68320981,0.0001365,2]
[334966546,1723684240903,-28589.444491,0.00013668,2]
[334966548,1723684240912,-28589.444491,0.00013687,2]
[334966550,1723684240922,-223.40672649,0.00013688,2]
[334966552,1723684240935,-151.0,0.00013688,2]
[334966554,1723684240944,-151.0,0.00013688,2]
[334966556,1723684240953,-151.0,0.00013688,2]
[334966558,1723684240965,-151.0,0.00013688,2]
[334966560,1723684240975,-172.979229,0.00013688,2]
[334966562,1723684240984,-172.979229,0.00013688,2]
[334966564,1723684240994,-57178.8889821,0.00013688,2]
[334966566,1723684241006,-1747.87115967,0.00013697,3]
[334966568,1723684241015,-7805.92635066,0.00013698,2]
[334966570,1723684241024,-500.0,0.00013698,2]
[334966572,1723684241034,-500.0,0.00013698,2]
[334966574,1723684241046,-234.24312179,0.00013698,2]
[334966576,1723684241056,-500.0,0.00013698,2]
[334966578,1723684241066,-219.52367569,0.00013698,2]
[334966580,1723684241076,-500.0,0.00013698,2]
[334966582,1723684241085,-562.47,0.00013698,2]
[334966584,1723684241095,-634.06,0.00013698,2]
[334966586,1723684241106,-500.0,0.00013698,2]
[334966588,1723684241116,-500.0,0.00013698,2]
[334966590,1723684241126,-500.0,0.00013698,2]
[334966592,1723684241136,-500.0,0.00013698,2]
[334966594,1723684241145,-500.0,0.00013698,2]
[334966597,1723684241155,-500.0,0.00013698,2]
[334966599,1723684241165,-500.0,0.00013698,2]
[334966600,1723684241176,-623.69639426,0.00013698,2]
[334966603,1723684241189,-500.0,0.00013698,2]
[334966605,1723684241204,-500.0,0.00013698,2]
[334966607,1723684241214,-500.0,0.00013698,2]
[334966609,1723684241223,-500.0,0.00013698,2]
[334966611,1723684241233,-504.21239175,0.00013698,2]
[334966613,1723684241243,-502.38200505,0.00013698,2]
[334966615,1723684241253,-500.0,0.00013698,2]
[334966617,1723684241262,-500.0,0.00013698,2]
[334966619,1723684241272,-285.00570631,0.00013698,2]
[334966621,1723684241282,-500.0,0.00013698,2]
[334966623,1723684241292,-500.0,0.00013698,2]
[334966625,1723684241302,-500.0,0.00013698,2]
[334966627,1723684241311,-500.0,0.00013698,2]
[334966629,1723684241321,-500.0,0.00013698,2]
[334966631,1723684241331,-500.0,0.00013698,2]
[334966633,1723684241340,-500.0,0.00013698,2]
[334966635,1723684241350,-500.0,0.00013698,2]
[334966637,1723684241359,-500.0,0.00013698,2]
[334966639,1723684241369,-500.0,0.00013698,2]
[334966641,1723684241379,-500.0,0.00013698,2]
[334966643,1723684241389,-500.0,0.00013698,2]
[334966645,1723684241398,-512.84052362,0.00013698,2]
[334966647,1723684241408,-500.0,0.00013698,2]
[334966649,1723684241417,-500.0,0.00013698,2]
[334966651,1723684241427,-500.0,0.00013698,2]
[334966653,1723684241440,-500.0,0.00013698,2]
[334966655,1723684241449,-500.0,0.00013698,2]
[334966657,1723684241460,-466.46,0.00013698,2]
[334966659,1723684241470,-500.0,0.00013698,2]
[334966661,1723684241480,-500.0,0.00013698,2]
[334966663,1723684241489,-500.0,0.00013698,2]
[334966665,1723684241499,-500.0,0.00013698,2]
[334966668,1723684241512,-500.0,0.00013698,2]
[334966670,1723684241527,-500.0,0.00013698,2]
[334966673,1723684241543,-538.28,0.00013698,2]
[334966675,1723684241557,-500.0,0.00013698,2]
[334966678,1723684241570,-500.0,0.00013698,2]
[334966680,1723684241584,-500.0,0.00013698,2]
[334966683,1723684241597,-500.0,0.00013698,2]
[334966685,1723684241612,-500.0,0.00013698,2]
[334966688,1723684241625,-500.0,0.00013698,2]
[334966690,1723684241640,-260.08857356,0.00013698,2]
[334966693,1723684241656,-500.0,0.00013698,2]
[334966695,1723684241669,-500.0,0.00013698,2]
[334966698,1723684241682,-549.19,0.00013698,2]
[334966700,1723684241705,-500.0,0.00013698,2]
[334966702,1723684241718,-500.0,0.00013698,2]
[334966705,1723684241731,-500.0,0.00013698,2]
[334966707,1723684241742,-500.0,0.00013698,2]
[334966709,1723684241754,-500.0,0.00013698,2]
[334966712,1723684241767,-500.0,0.00013698,2]
[334966714,1723684241780,-500.0,0.00013698,2]
[334966716,1723684241794,-771.2,0.00013698,2]
[334966719,1723684241808,-500.0,0.00013698,2]
[334966722,1723684241822,-286.75979468,0.00013698,2]
[334966724,1723684241836,-500.0,0.00013698,2]
[334966726,1723684241849,-503.67705028,0.00013698,2]
[334966729,1723684241860,-500.0,0.00013698,2]
[334966731,1723684241870,-500.0,0.00013698,2]
[334966733,1723684241884,-500.0,0.00013698,2]
[334966736,1723684241899,-500.0,0.00013698,2]
[334966738,1723684241912,-500.0,0.00013698,2]
[334966741,1723684241923,-500.0,0.00013698,2]
[334966743,1723684241944,-500.0,0.00013698,2]
[334966745,1723684241958,-500.0,0.00013698,2]
[334966748,1723684241972,-500.0,0.00013698,2]
[334966750,1723684241983,-525.67,0.00013698,2]
[334966752,1723684241994,-500.0,0.00013698,2]
[334966754,1723684242007,-500.0,0.00013698,2]
[334966756,1723684242019,-500.0,0.00013698,2]
[334966759,1723684242031,-500.0,0.00013698,2]
[334966761,1723684242043,-500.0,0.00013698,2]
[334966763,1723684242055,-564.24,0.00013698,2]
[334966765,1723684242069,-500.0,0.00013698,2]
[334966767,1723684242080,-783.0,0.00013698,2]
[334966770,1723684242092,-583.14,0.00013698,2]
[334966772,1723684242103,-500.0,0.00013698,2]
[334966774,1723684242115,-500.0,0.00013698,2]
[334966776,1723684242128,-300.0,0.00013698,2]
[334966779,1723684242139,-500.0,0.00013698,2]
[334966781,1723684242151,-500.0,0.00013698,2]
[334966784,1723684242164,-500.0,0.00013698,2]
[334966786,1723684242176,-500.0,0.00013698,2]
[334966788,1723684242192,-928.04,0.00013698,2]
[334966790,1723684242204,-500.0,0.00013698,2]
[334966793,1723684242215,-500.0,0.00013698,2]
[334966795,1723684242227,-500.0,0.00013698,2]
[334966797,1723684242239,-500.0,0.00013698,2]
[334966799,1723684242250,-500.0,0.00013698,2]
[334966802,1723684242262,-500.0,0.00013698,2]
[334966804,1723684242273,-500.0,0.00013698,2]
[334966806,1723684242286,-500.0,0.00013698,2]
[334966809,1723684242298,-500.0,0.00013698,2]
[334966811,1723684242310,-753.09,0.00013698,2]
[334966812,1723684242322,-500.0,0.00013698,2]
[334966813,1723684242333,-500.0,0.00013698,2]
[334966814,1723684242344,-500.0,0.00013698,2]
[334966815,1723684242356,-500.0,0.00013698,2]
[334966816,1723684242367,-500.0,0.00013698,2]
[334966817,1723684242378,-500.0,0.00013698,2]
[334966818,1723684242390,-649.55,0.00013698,2]
[334966819,1723684242401,-623.06,0.00013698,2]
[334966820,1723684242413,-151.0,0.00013698,2]
[334966821,1723684242424,-151.0,0.00013698,2]
[334966822,1723684242437,-151.0,0.00013698,2]
[334966824,1723684242449,-500.0,0.00013698,2]
[334966826,1723684242460,-500.0,0.00013698,2]
[334966829,1723684242472,-500.0,0.00013698,2]
[334966831,1723684242484,-151.0,0.00013698,2]
[334966833,1723684242496,-151.0,0.00013698,2]
[334966835,1723684242507,-500.0,0.00013698,2]
[334966838,1723684242519,-500.0,0.00013698,2]
[334966840,1723684242531,-500.0,0.00013698,2]
[334966842,1723684242542,-500.0,0.00013698,2]
[334966845,1723684242553,-500.0,0.00013698,2]
[334966847,1723684242565,-500.0,0.00013698,2]
[334966849,1723684242576,-650.82,0.00013698,2]
[334966851,1723684242588,-500.0,0.00013698,2]
[334966854,1723684242599,-500.0,0.00013698,2]
[334966856,1723684242611,-500.0,0.00013698,2]
[334966858,1723684242623,-500.0,0.00013698,2]
[334966860,1723684242635,-500.0,0.00013698,2]
[334966863,1723684242646,-500.0,0.00013698,2]
[334966865,1723684242658,-519.16,0.00013698,2]
[334966867,1723684242670,-500.0,0.00013698,2]
[334966871,1723684242681,-500.0,0.00013698,2]
[334966873,1723684242694,-500.0,0.00013698,2]
[334966875,1723684242705,-500.0,0.00013698,2]
[334966877,1723684242716,-500.0,0.00013698,2]
[334966879,1723684242728,-500.0,0.00013698,2]
[334966882,1723684242739,-500.0,0.00013698,2]
[334966884,1723684242751,-254.57778243,0.00013698,2]
[334966886,1723684242763,-500.0,0.00013698,2]
[334966889,1723684242775,-500.0,0.00013698,2]
[334966891,1723684242786,-681.53,0.00013698,2]
[334966893,1723684242799,-741.29,0.00013698,2]
[334966895,1723684242811,-500.0,0.00013698,2]
[334966898,1723684242823,-500.0,0.00013698,2]
[334966900,1723684242834,-500.0,0.00013698,2]
[334966902,1723684242845,-500.0,0.00013698,2]
[334966905,1723684242857,-500.0,0.00013698,2]
[334966907,1723684242868,-500.0,0.00013698,2]
[334966909,1723684242879,-263.891728,0.00013698,2]
[334966911,1723684242891,-263.891728,0.00013698,2]
[334966914,1723684242902,-500.0,0.00013698,2]
[334966916,1723684242914,-500.0,0.00013698,2]
[334966918,1723684242926,-567.57,0.00013698,2]
[334966920,1723684242936,-263.891728,0.00013698,2]
[334966949,1723684243131,-263.891728,0.00013698,2]
[334966952,1723684243147,-500.0,0.00013698,2]
[334966954,1723684243157,-500.0,0.00013698,2]
[334966956,1723684243167,-500.0,0.00013698,2]
[334966958,1723684243177,-151.0,0.00013698,2]
[334966960,1723684243188,-151.0,0.00013698,2]
[334966962,1723684243197,-500.0,0.00013698,2]
[334966964,1723684243208,-753.55,0.00013698,2]
[334966966,1723684243217,-500.0,0.00013698,2]
[334966968,1723684243228,-500.0,0.00013698,2]
[334966971,1723684243238,-727.74,0.00013698,2]
[334966973,1723684243249,-500.0,0.00013698,2]
[334966975,1723684243259,-500.0,0.00013698,2]
[334966977,1723684243269,-500.0,0.00013698,2]
[334966979,1723684243279,-500.0,0.00013698,2]
[334966981,1723684243289,-500.0,0.00013698,2]
[334966983,1723684243298,-500.0,0.00013698,2]
[334966985,1723684243308,-500.0,0.00013698,2]
[334966987,1723684243318,-651.88,0.00013698,2]
[334966989,1723684243328,-500.0,0.00013698,2]
[334966991,1723684243337,-500.0,0.00013698,2]
[334966993,1723684243348,-500.0,0.00013698,2]
[334966995,1723684243358,-300.0,0.00013698,2]
[334966997,1723684243367,-500.0,0.00013698,2]
[334966999,1723684243377,-828.21,0.00013698,2]
[334967001,1723684243387,-500.0,0.00013698,2]
[334967003,1723684243396,-295.66217613,0.00013698,2]
[334967250,1723684245872,-155.17643878,9.999e-05,2]
[334967252,1723684245882,-55442.34208291,0.00011409,2]
[334967254,1723684245891,-493.03932546,0.00012989,2]
[334967256,1723684245900,-219.43782387,0.00013698,2]
[334967258,1723684245910,-500.0,0.00013698,2]
[334967260,1723684245919,-500.0,0.00013698,2]
[334967262,1723684245929,-500.0,0.00013698,2]
[334967264,1723684245940,-500.0,0.00013698,2]
[334967266,1723684245949,-500.0,0.00013698,2]
[334967268,1723684245964,-500.0,0.00013698,2]
[334967270,1723684245973,-725.71,0.00013698,2]
[334967272,1723684245983,-593.31,0.00013698,2]
[334967274,1723684245992,-500.0,0.00013698,2]
[334967276,1723684246002,-500.0,0.00013698,2]
[334967278,1723684246012,-599.49,0.00013698,2]
[334967280,1723684246022,-586.04,0.00013698,2]
[334967282,1723684246031,-500.0,0.00013698,2]
[334967284,1723684246042,-500.0,0.00013698,2]
[334967286,1723684246053,-469.23075247,0.00013698,2]
[334967288,1723684246062,-500.0,0.00013698,2]
[334967290,1723684246072,-500.0,0.00013698,2]
[334967292,1723684246082,-594.55,0.00013698,2]
[334967294,1723684246091,-500.0,0.00013698,2]
[334967296,1723684246100,-544.27,0.00013698,2]
[334967298,1723684246110,-500.0,0.00013698,2]
[334967299,1723684246119,-500.0,0.00013698,2]
[334967301,1723684246128,-500.0,0.00013698,2]
[334967303,1723684246138,-602.6,0.00013698,2]
[334967305,1723684246147,-578.89,0.00013698,2]
[334967308,1723684246157,-500.0,0.00013698,2]
[334967309,1723684246166,-500.0,0.00013698,2]
[334967311,1723684246175,-600.0,0.00013698,2]
[334967313,1723684246185,-500.0,0.00013698,2]
[334967315,1723684246194,-582.98,0.00013698,2]
[334967317,1723684246204,-500.0,0.00013698,2]
[334967319,1723684246213,-500.0,0.00013698,2]
[334967321,1723684246223,-500.0,0.00013698,2]
[334967323,1723684246233,-574.2,0.00013698,2]
[334967325,1723684246243,-500.0,0.00013698,2]
[334967327,1723684246252,-500.0,0.00013698,2]
[334967329,1723684246262,-500.0,0.00013698,2]
[334967331,1723684246271,-500.0,0.00013698,2]
[334967333,1723684246281,-500.0,0.00013698,2]
[334967335,1723684246290,-699.98,0.00013698,2]
[334967337,1723684246299,-500.0,0.00013698,2]
[334967339,1723684246309,-500.0,0.00013698,2]
[334967341,1723684246318,-500.0,0.00013698,2]
[334967343,1723684246327,-400.0,0.00013698,2]
[334967345,1723684246337,-500.0,0.00013698,2]
[334967347,1723684246346,-500.0,0.00013698,2]
[334967349,1723684246357,-588.34,0.00013698,2]
[334967351,1723684246366,-500.0,0.00013698,2]
[334967353,1723684246376,-500.0,0.00013698,2]
[334967356,1723684246388,-500.0,0.00013698,2]
[334967358,1723684246397,-500.0,0.00013698,2]
[334967360,1723684246407,-500.0,0.00013698,2]
[334967362,1723684246419,-500.0,0.00013698,2]
[334967364,1723684246430,-590.2,0.00013698,2]
[334967366,1723684246443,-500.0,0.00013698,2]
[334967383,1723684246452,-500.0,0.00013698,2]
[334967386,1723684246608,-500.0,0.00013698,2]
[334967388,1723684246619,-500.0,0.00013698,2]
[334967390,1723684246629,-500.0,0.00013698,2]
[334967392,1723684246638,-500.0,0.00013698,2]
[334967394,1723684246648,-500.0,0.00013698,2]
[334967396,1723684246658,-500.0,0.00013698,2]
[334967398,1723684246669,-500.0,0.00013698,2]
[334967400,1723684246678,-500.0,0.00013698,2]
[334967402,1723684246688,-500.0,0.00013698,2]
[334967404,1723684246698,-331.71945954,0.00013698,2]
[334967406,1723684246709,-500.0,0.00013698,2]
[334967408,1723684246719,-500.0,0.00013698,2]
[334967411,1723684246730,-500.0,0.00013698,2]
[334967413,1723684246741,-500.0,0.00013698,2]
[334967415,1723684246750,-500.0,0.00013698,2]
[334967417,1723684246760,-500.0,0.00013698,2]
[334967419,1723684246770,-500.0,0.00013698,2]
[334967421,1723684246781,-500.0,0.00013698,2]
[334967423,1723684246791,-551.46246339,0.00013698,2]
[334967425,1723684246801,-500.0,0.00013698,2]
[334967427,1723684246810,-500.0,0.00013698,2]
[334967429,1723684246820,-500.0,0.00013698,2]
[334967431,1723684246829,-500.0,0.00013698,2]
[334967433,1723684246838,-151.0,0.00013698,2]
[334967435,1723684246848,-151.0,0.00013698,2]
[334967437,1723684246857,-500.0,0.00013698,2]
[334967439,1723684246866,-500.0,0.00013698,2]
[334967441,1723684246875,-628.86772703,0.00013698,2]
[334967443,1723684246885,-500.0,0.00013698,2]
[334967446,1723684246896,-500.0,0.00013698,2]
[334967448,1723684246906,-511.11,0.00013698,2]
[334967450,1723684246915,-500.0,0.00013698,2]
[334967452,1723684246924,-500.0,0.00013698,2]
[334967454,1723684246933,-500.0,0.00013698,2]
[334967456,1723684246944,-500.0,0.00013698,2]
[334967458,1723684246953,-594.16,0.00013698,2]
[334967460,1723684246966,-592.91,0.00013698,2]
[334967462,1723684246975,-804.79,0.00013698,2]
[334967464,1723684246985,-500.0,0.00013698,2]
[334967466,1723684246996,-500.0,0.00013698,2]
[334967468,1723684247008,-946.62,0.00013698,2]
[334967470,1723684247018,-212.739999,0.00013698,2]
[334967472,1723684247027,-500.0,0.00013698,2]
[334967474,1723684247037,-151.0,0.00013698,2]
[334967476,1723684247050,-268.815221,0.00013698,2]
[334967479,1723684247059,-268.815221,0.00013698,2]
[334967481,1723684247069,-500.0,0.00013698,2]
[334967483,1723684247079,-151.0,0.00013698,2]
[334967485,1723684247090,-268.815221,0.00013698,2]
[334967487,1723684247099,-268.815221,0.00013698,2]
[334967489,1723684247109,-500.0,0.00013698,2]
[334967491,1723684247121,-693.48,0.00013698,2]
[334967493,1723684247131,-500.0,0.00013698,2]
[334967495,1723684247142,-500.0,0.00013698,2]
[334967497,1723684247151,-535.17,0.00013698,2]
[334967499,1723684247161,-500.0,0.00013698,2]
[334967502,1723684247170,-187.680285,0.00013698,2]
[334967504,1723684247180,-500.0,0.00013698,2]
[334967506,1723684247189,-598.92,0.00013698,2]
[334967507,1723684247198,-187.680285,0.00013698,2]
[334967509,1723684247207,-1280.15,0.00013698,2]
[334967511,1723684247216,-500.0,0.00013698,2]
[334967513,1723684247226,-500.0,0.00013698,2]
[334967515,1723684247235,-500.0,0.00013698,2]
[334967517,1723684247244,-500.0,0.00013698,2]
[334967519,1723684247254,-500.0,0.00013698,2]
[334967522,1723684247263,-500.0,0.00013698,2]
[334967523,1723684247272,-500.0,0.00013698,2]
[334967525,1723684247281,-500.0,0.00013698,2]
[334967528,1723684247291,-500.0,0.00013698,2]
[334967530,1723684247301,-500.0,0.00013698,2]
[334967532,1723684247311,-891.11,0.00013698,2]
[334967534,1723684247320,-850.61,0.00013698,2]
[334967536,1723684247330,-500.0,0.00013698,2]
[334967538,1723684247339,-500.0,0.00013698,2]
[334967540,1723684247349,-500.0,0.00013698,2]
[334967542,1723684247359,-500.0,0.00013698,2]
[334967544,1723684247369,-356.60809115,0.00013698,2]
[334967547,1723684247386,-143.39190885,0.00013698,2]
[334967549,1723684247395,-500.0,0.00013698,2]
[334967551,1723684247405,-500.0,0.00013698,2]
[334967553,1723684247414,-340.97573053,0.00013698,2]
[334967555,1723684247423,-268.423075,0.00013698,2]
[334967557,1723684247432,-500.0,0.00013698,2]
[334967559,1723684247442,-169.0785206,0.00013698,2]
[334967561,1723684247454,-330.9214794,0.00013698,2]
[334967563,1723684247464,-500.0,0.00013698,2]
[334967565,1723684247473,-500.0,0.00013698,2]
[334967567,1723684247482,-151.0,0.00013698,2]
[334967569,1723684247492,-500.0,0.00013698,2]
[334967571,1723684247501,-500.0,0.00013698,2]
[334967573,1723684247510,-500.0,0.00013698,2]
[334967575,1723684247520,-500.0,0.00013698,2]
[334967578,1723684247529,-500.0,0.00013698,2]
[334967580,1723684247538,-500.0,0.00013698,2]
[334967582,1723684247548,-500.0,0.00013698,2]
[334967584,1723684247557,-500.0,0.00013698,2]
[334967586,1723684247566,-500.0,0.00013698,2]
[334967588,1723684247576,-500.0,0.00013698,2]
[334967590,1723684247585,-500.0,0.00013698,2]
[334967592,1723684247599,-500.0,0.00013698,2]
[334967594,1723684247609,-500.0,0.00013698,2]
[334967596,1723684247618,-500.0,0.00013698,2]
[334967598,1723684247627,-500.0,0.00013698,2]
[334967600,1723684247636,-500.0,0.00013698,2]
[334967602,1723684247646,-500.0,0.00013698,2]
[334967604,1723684247655,-500.0,0.00013698,2]
[334967606,1723684247665,-248.21997534,0.00013698,2]
[334967860,1723684260503,-790.10257641,0.0002,30]
[334967861,1723684260526,-912.15993189,0.0002,30]
[334967862,1723684260844,-2154.70927403,0.0002,30]
[334967863,1723684261175,-1702.2625083,0.000212,30]
[334967864,1723684261202,-2652.65326694,0.00022,30]
[334967865,1723684261844,-175.0,0.00022,30]
[334967870,1723684488375,327.0,0.00027,120]
[334967872,1723684572503,200.0,0.00027,120]
[334967911,1723685431991,-203.93211999,8.42e-05,2]
[334967912,1723685432001,-200.0,8.42e-05,2]
[334967913,1723685432013,-1306.71975878,8.521e-05,2]
[334967914,1723685432114,-329.16322832,8.521e-05,2]
[334967915,1723685432127,-5374.35227378,8.521e-05,2]
[334967916,1723685432137,-300.0,8.882e-05,2]
[334967917,1723685432146,-321.28279271,8.883e-05,2]
[334967926,1723685438568,-1500.0,8.521e-05,2]